Cogmind - Beta 14 @@@ ROGUE MODE // 2024.11.27 @ 20:19:25 Player: Cherman0 Result: Self-destructed Performance ------------- Evolutions (5) 2500 Regions Visited (22) 4400 Robots Destroyed (329) 1645 Value Destroyed (9085) 9085 Prototype IDs (34) 680 Alien Tech Used (0) 0 Bonus (2033) 2033 TOTAL SCORE: 20343 Bonus ------- High Alert Combat Kills 841 Follower Combat Kills 271 Entered Garrisons 400 Met Data Miner 300 Met Imprinter 300 Acquired ECA 300 Friendly Fire -379 Cogmind --------- Core Integrity 485/1000 Matter 226/300 Energy 79/100 System Corruption 1% Temperature Cool (22) Movement Hovering (52) Location -5/Factory Parts ------- > --- POWER (1) -------- (None) > --- PROPULSION (5) --- Cooled Aerolev Unit Combat Airjet > --- UTILITY (9) ------ Large Storage Unit Enhanced Optical Array Advanced Targeting Computer Improved Hacking Suite > --- WEAPON (2) ------- (None) > --- INVENTORY (15) --- Advanced Heat Sink Matter Compressor (235) Gravity Neutralizer Advanced Transmission Jammer Hacking Suite HERF Cannon Advanced Plasma Cannon Antimatter Cannon Makeshift Spear Peak State ------------ > --- POWER ------------ Enhanced Nuclear Core > --- PROPULSION ------- Combat Airjet Combat Airjet Gravmag Array Improved Antigrav System > --- UTILITY ---------- Large Storage Unit Enhanced Optical Array Advanced Targeting Computer Core Analyzer Improved Reaction Control System Layered Light Armor Plating Improved Hacking Suite Advanced Hacking Suite Makeshift System Shield > --- WEAPON ----------- Enhanced Gauss Cannon Makeshift Spear > --- INVENTORY -------- Neutrino Core Combat Airjet Improved Coolant Injector Matter Compressor Gravity Neutralizer Stasis Canceller Advanced Transmission Jammer ECM Suite Improved Focal Shield Hacking Suite System Restoration Module HERF Cannon Phase Cannon Magnetic Acceleration Cannon Long-range Missile Launcher [Rating: 86] Favorites ----------- Power Heavy Ion Engine Engine Heavy Ion Engine Power Core Enhanced Nuclear Core Reactor Antimatter Reactor Propulsion Light Treads Treads Light Treads Leg Aluminum Leg Hover Unit Combat Airjet Utility Huge Storage Unit Device Seismic Detector Storage Huge Storage Unit Processor Enhanced Optical Array Hackware Hacking Suite Protection Hardened Medium Armor Plating Weapon Enhanced Autogun Energy Gun Improved Medium Laser Energy Cannon Beam Cannon Ballistic Gun Enhanced Autogun Ballistic Cannon Magnetic Acceleration Cannon Launcher Mini Grenade Launcher Special Weapon Mining Laser Impact Weapon Mace Slashing Weapon Makeshift Sword Piercing Weapon Makeshift Spear Build | -11 -10 -10 -9 -9 -9 -8 -8 -8 -8 -7 -7 -7 -7 -7 -7 -6 -6 -6 -6 -6 -5 -5 ------- Run | Yrd Mat Min Mat Min Exi Min Mat Gar Mat Fac Gar Fac Low Low Zio Pro Fac Low Low Dat Pro Fac Slots Evolved 10 | . . . 2 . . . 2 . . 2 . . . . . . 2 . . . . 2 Power . | . . . . . . . . . . . . . . . . . . . . . . . Propulsion 3 | . . . 1 . . . 1 . . . . . . . . . 1 . . . . . Utility 7 | . . . 1 . . . 1 . . 2 . . . . . . 1 . . . . 2 Weapon . | . . . . . . . . . . . . . . . . . . . . . . . Parts Attached 416 | 3 16 6 50 9 . 6 65 29 48 13 42 37 9 2 6 2 24 13 2 3 6 25 Power 14 | . 1 . 2 1 . . . 1 2 2 2 1 . . . . . . 1 . . 1 Engine 5 | . 1 . 2 1 . . . . 1 . . . . . . . . . . . . . Core 8 | . . . . . . . . 1 1 2 1 1 . . . . . . 1 . . 1 Reactor 1 | . . . . . . . . . . . 1 . . . . . . . . . . . Propulsion 88 | 2 1 . 16 1 . 1 23 1 14 . 6 8 . . . . 10 1 . . . 4 Treads 52 | 2 1 . 16 1 . 1 22 1 8 . . . . . . . . . . . . . Leg 1 | . . . . . . . . . . . . . . . . . 1 . . . . . Wheel . | . . . . . . . . . . . . . . . . . . . . . . . Hover 35 | . . . . . . . 1 . 6 . 6 8 . . . . 9 1 . . . 4 Flight . | . . . . . . . . . . . . . . . . . . . . . . . Utility 155 | 1 8 3 13 2 . 1 15 4 13 10 14 21 8 1 3 1 12 6 . 1 4 14 Device 103 | 1 7 3 8 1 . . 7 3 7 4 13 14 5 1 3 1 11 3 . 1 2 8 Storage 3 | . 1 . . . . . . . 1 1 . . . . . . . . . . . . Processor 10 | . . . 1 . . . . . 2 . 1 4 . . . . . 2 . . . . Hackware 14 | . . . . . . . 3 1 . 1 . 3 1 . . . 1 . . . . 4 Protection 25 | . . . 4 1 . 1 5 . 3 4 . . 2 . . . . 1 . . 2 2 Artifact . | . . . . . . . . . . . . . . . . . . . . . . . Weapon 159 | . 6 3 19 5 . 4 27 23 19 1 20 7 1 1 3 1 2 6 1 2 2 6 Energy Gun 35 | . . . 10 . . . 9 2 9 . 4 1 . . . . . . . . . . Energy Cannon 16 | . 4 2 1 . . . . . 2 . 5 1 . . . . . . . . . 1 Ballistic Gun 39 | . . . 5 3 . 2 15 10 3 . . . . . . . . . . 1 . . Ballistic Cannon 15 | . . . . . . . . . . 1 5 1 . . 1 . . 3 . . 1 3 Launcher 26 | . . . 2 2 . 2 2 6 2 . 2 . 1 . 1 . . 3 . 1 1 1 Special Weapon 3 | . 2 1 . . . . . . . . . . . . . . . . . . . . Impact Weapon 1 | . . . 1 . . . . . . . . . . . . . . . . . . . Slashing Weapon 16 | . . . . . . . 1 5 3 . 4 2 . . . . 1 . . . . . Piercing Weapon 8 | . . . . . . . . . . . . 2 . 1 1 1 1 . 1 . . 1 Special Melee Weapon . | . . . . . . . . . . . . . . . . . . . . . . . Unidentified Prototypes 7 | . . . 2 . . . 3 . . . . 1 . . . . 1 . . . . . Parts Lost 46 | . 2 . 1 1 . . 6 2 2 2 8 2 . . . . . 2 1 . . 17 Power 9 | . 1 . . 1 . . . 1 . 1 1 1 . . . . . . 1 . . 2 Propulsion 10 | . . . 1 . . . . . . . 1 1 . . . . . 1 . . . 6 Utility 17 | . . . . . . . 3 1 1 1 5 . . . . . . . . . . 6 Weapon 10 | . 1 . . . . . 3 . 1 . 1 . . . . . . 1 . . . 3 Highest Loss Streak 14 | . 2 . 1 1 . . 3 1 1 1 3 1 . . . . . 1 1 . . 14 To Critical Strikes . | . . . . . . . . . . . . . . . . . . . . . . . Average Slot Usage (%) 98 | . 99 100 99 99 100 100 98 100 98 100 93 99 100 100 99 100 92 92 93 87 93 92 Engine 7 | . 14 14 11 10 11 11 9 2 1 2 . . . . . . . . . . . . Core 2 | . . . . . . . . 6 7 4 5 7 7 7 7 7 6 6 6 6 6 4 Treads 23 | . 28 28 32 33 33 33 35 36 35 . . . . . . . . . . . . . Hover 7 | . . . . . . . . . . 30 30 30 30 30 30 30 26 25 26 26 26 23 Device 10 | . 14 14 10 9 11 11 8 18 5 15 16 8 7 7 7 7 12 3 6 6 1 7 Storage 9 | . 14 14 11 11 11 11 9 9 9 7 7 7 7 7 7 7 6 6 6 6 6 5 Processor 4 | . . . . . . . . . 8 7 7 21 15 15 15 15 13 17 20 20 20 16 Hackware 5 | . . . . . . . 10 9 9 7 7 7 13 15 15 15 13 13 13 13 13 14 Protection 4 | . . . 11 12 11 11 6 . 2 7 4 . . . . . . 4 . . 4 3 Energy Gun 2 | . 2 . 7 . . . 1 . 9 . 1 . . . . . . . . . . . Energy Cannon 5 | . 23 27 2 . . . . . 2 1 2 . . . . . . . . . . . Ballistic Gun 7 | . . . 9 21 22 22 16 16 4 . . . . . . . . . . . . . Ballistic Cannon 1 | . . . . . . . . . . 5 1 6 7 7 6 7 6 5 6 . 6 4 Piercing Weapon 1 | . . . . . . . . . . . . 3 7 7 6 7 6 5 6 6 3 4 Peak Build Rating 86 | 7 12 13 25 26 25 25 40 41 44 48 64 64 64 60 63 63 74 73 70 74 75 86 Average Rating 34 | 6 10 10 22 25 25 24 31 39 37 46 51 54 59 58 59 58 68 70 68 64 71 80 On Entrance 44 | 6 7 12 13 23 25 25 25 40 41 42 47 50 64 60 58 63 58 69 70 69 74 73 Naked Turns . | . . . . . . . . . . . . . . . . . . . . . . . Heaviest Build 114 | 13 92 96 107 107 103 103 114 101 102 42 50 43 46 40 44 40 41 46 40 39 48 51 Greatest Support 86 | 40 40 40 63 60 60 60 86 86 86 40 40 40 40 40 40 40 56 56 56 56 56 60 Greatest Overweight (x) 14 | . 2 2 1 1 1 1 1 1 1 1 14 1 1 . 1 . 1 . . . . 1 Average Overweight (x) . | . 1 2 1 1 1 1 1 1 1 . . . . . . . . . . . . . Largest Inventory Capacity 25 | 8 25 25 25 25 25 25 25 25 25 20 15 15 15 15 15 15 15 15 15 15 15 15 Average Capacity 21 | 8 21 25 25 25 25 25 25 25 24 15 15 15 15 15 15 15 15 15 15 15 15 15 Most Carried 25 | 6 25 25 25 25 25 25 25 25 25 19 15 15 15 15 15 15 15 15 15 15 15 15 Average Carried 21 | 4 18 24 24 24 24 25 24 23 24 14 14 14 14 14 14 15 14 14 14 14 14 14 Final Capacity 25 | 8 25 25 25 25 25 25 25 25 20 15 15 15 15 15 15 15 15 15 15 15 15 15 Final Carried 25 | 5 25 25 25 24 25 25 25 24 20 14 15 15 15 15 15 15 15 14 15 14 15 9 Class Distribution -------------------- 60% | Mutant 20% | Scavenger-Mutant 18% | Hacker-Mutant Dominant Class ---------------- Mutant | -10/Materials Mutant | -10/Mines Mutant | -9/Materials Mutant | -9/Mines Mutant | -9/Exiles Mutant | -8/Mines Scavenger-Mutant | -8/Materials Mutant | -8/Garrison Mutant | -8/Materials Scavenger-Mutant | -7/Factory Scavenger-Mutant | -7/Garrison Mutant | -7/Factory Hacker-Mutant | -7/Lower Caves Hacker-Mutant | -7/Lower Caves Hacker-Mutant | -7/Zion Hacker-Mutant | -6/Proximity Caves Hacker-Mutant | -6/Factory Hacker-Mutant | -6/Lower Caves Hacker-Mutant | -6/Lower Caves Hacker-Mutant | -6/Data Miner Hacker-Mutant | -5/Proximity Caves Hacker-Mutant | -5/Factory Resources | -11 -10 -10 -9 -9 -9 -8 -8 -8 -8 -7 -7 -7 -7 -7 -7 -6 -6 -6 -6 -6 -5 -5 ----------- Run | Yrd Mat Min Mat Min Exi Min Mat Gar Mat Fac Gar Fac Low Low Zio Pro Fac Low Low Dat Pro Fac Matter Collected 9267 | 230 140 64 787 397 52 119 1512 608 1136 158 837 959 160 224 40 46 691 462 80 . 182 383 Remotely . | . . . . . . . . . . . . . . . . . . . . . . . Salvage Created 11724 | 128 725 193 1949 337 . 125 2339 714 1699 69 821 1080 218 75 . 47 608 150 . . 102 345 Parts 657 | 12 43 4 111 32 . 5 162 43 89 2 31 52 9 2 . . 17 11 . . 8 24 Haulers Intercepted 24 | . 2 . 6 . . . 6 . 4 1 . 4 . . . . 1 . . . . . Recyclers Shooed 8 | 1 1 . 2 . . . . . 2 . . . . . . . 1 . . . . 1 Parts Field Recycled . | . . . . . . . . . . . . . . . . . . . . . . . Retrieved Matter . | . . . . . . . . . . . . . . . . . . . . . . . Parts Self-Destructed 51 | . . . . . . . . . . . . . 11 12 . 3 . 17 . . 8 . Prevented 5 | . . . . . . . . . . . . . 1 . . 2 . 2 . . . . Kills | -11 -10 -10 -9 -9 -9 -8 -8 -8 -8 -7 -7 -7 -7 -7 -7 -6 -6 -6 -6 -6 -5 -5 ------- Run | Yrd Mat Min Mat Min Exi Min Mat Gar Mat Fac Gar Fac Low Low Zio Pro Fac Low Low Dat Pro Fac Combat Hostiles Destroyed 231 | . 13 6 24 25 . 7 45 23 21 1 25 8 3 2 . . 2 14 . . 6 6 Melee 9 | . . . . . . . . . . 1 6 . 2 . . . . . . . . . Guns 107 | . 5 . 20 10 . 2 37 13 17 . 2 1 . . . . . . . . . . Cannons 41 | . 6 6 . . . . . . 1 . 10 6 1 2 . . 2 4 . . 1 2 AOE 67 | . . . 2 15 . 5 8 10 3 . 5 . . . . . . 10 . . 5 4 Classes Destroyed 20 | 2 6 1 4 2 . . . . 1 . 2 . 1 . . . . . . . 1 . Worker 14 | . . . 3 . . . . . 4 . . 1 . . . . 5 . . . . 1 Builder 7 | . . . . 1 . . 3 . 2 . . . . . . . . . . . . 1 Tunneler 4 | 4 . . . . . . . . . . . . . . . . . . . . . . Hauler 24 | . 2 . 6 . . . 6 . 4 1 . 4 . . . . 1 . . . . . Recycler 19 | 1 1 . 6 1 . . 1 . 2 . . 4 . . . . 2 . . . . 1 Minesweeper 3 | . . . . . . . . . . . . . 1 . . 2 . . . . . . Mechanic 2 | . . . 1 . . . . . . . . 1 . . . . . . . . . . Operator 15 | . 2 . 2 . . . 2 . 2 . . 5 . . . . . . . . . 2 Drone 1 | . . . . . . . . . . . . . . . . . . . . . 1 . Watcher 21 | . 3 . 4 . . . 4 . 2 . . 5 . . . . 2 . . . . 1 Swarmer 82 | . 3 2 3 12 . 4 16 6 . . 14 . 1 . . . . 13 . . 4 4 Grunt 90 | . 7 3 11 . . 3 20 15 13 1 6 4 2 2 . . 1 1 . . 1 . Brawler 3 | . . . . . . . . . . . 2 . . . . . 1 . . . . . Duelist 7 | . . . 1 . . . 1 2 2 . 1 . . . . . . . . . . . Sentry 24 | . . . 9 . . . 8 . 5 . . 1 . . . . . . . . . 1 Demolisher 2 | . . . . 2 . . . . . . . . . . . . . . . . . . Hunter 3 | . . . . . . . . . 1 . 1 1 . . . . . . . . . . Programmer 4 | . . . . . . . . . . . 1 2 . . . . . . . . . 1 Subdweller 3 | . 3 . . . . . . . . . . . . . . . . . . . . . Assembled 12 | . . 1 . 11 . . . . . . . . . . . . . . . . . . Savage 1 | . . . . . . . . . . . . . . . . . . 1 . . . . Best Kill Streak 14 | 2 3 2 5 14 . 4 6 3 6 1 4 3 1 1 . 2 3 6 . . 4 4 Combat Bots Only 9 | . 3 2 3 9 . 4 5 3 3 1 4 3 1 1 . . 2 6 . . 4 4 Max Kills in Single Turn 4 | 1 1 1 1 4 . 3 4 3 3 1 3 1 1 1 . 1 1 3 . . 2 4 Gunslinging 1 | . . . . 1 . . 1 . . . . . . . . . . . . . . . Exploded 4 | . . . 1 4 . 3 4 3 2 . 3 . . . . . . 3 . . 2 4 Melee 1 | . . . . . . . . . . 1 1 . 1 . . . . . . . . . Uniques/NPCs Destroyed . | . . . . . . . . . . . . . . . . . . . . . . . Combat | -11 -10 -10 -9 -9 -9 -8 -8 -8 -8 -7 -7 -7 -7 -7 -7 -6 -6 -6 -6 -6 -5 -5 -------- Run | Yrd Mat Min Mat Min Exi Min Mat Gar Mat Fac Gar Fac Low Low Zio Pro Fac Low Low Dat Pro Fac Hostile Shots Fired 1044 | . 59 15 84 55 . 18 157 69 72 2 127 71 9 3 . 2 8 59 8 . 10 216 Missed 332 | . 19 3 14 14 . 5 47 11 24 1 39 26 3 1 . 1 3 27 4 . 2 88 Damage Taken 11082 | . 498 145 944 704 . 180 1523 826 920 143 1401 394 94 33 . 15 238 530 67 . 152 2275 Core 1758 | . 26 9 134 53 . 37 121 90 78 . 403 54 13 . . 15 19 110 18 . 63 515 Absorbed by Shields 340 | . . . . . . . 12 272 . . 56 . . . . . . . . . . . Regen/Repaired (Parts) 1062 | . 101 . 301 . . . 226 . 30 . . 349 . . . . 55 . . . . . Core Remaining (%) 63 | 100 . 86 . . . 44 . . 47 . . . . . . 30 . . . . 75 . Volleys Fired 832 | 14 64 24 104 39 . 8 135 61 76 11 84 70 3 13 . 1 32 46 2 . 17 28 Largest 2 | 2 2 2 2 2 . 2 2 2 2 1 2 1 1 1 . 1 1 1 1 . 1 1 Hottest 138 | 80 120 120 116 50 . 50 100 75 138 69 99 88 53 53 . 53 53 53 53 . 53 85 Shots Fired 1290 | 28 123 30 196 71 . 13 261 110 145 11 85 70 7 14 . 1 32 46 2 . 17 28 Gun 840 | 28 49 . 183 64 . 10 258 97 133 . 16 2 . . . . . . . . . . Cannon 390 | . 69 22 11 . . . . . 9 11 65 68 7 14 . 1 32 39 2 . 13 27 Launcher 47 | . . . 2 7 . 3 3 13 3 . 4 . . . . . . 7 . . 4 1 Special 13 | . 5 8 . . . . . . . . . . . . . . . . . . . . Kinetic 726 | . . . 70 64 . 10 206 93 41 10 33 66 7 14 . 1 32 39 2 . 13 25 Thermal 326 | 28 123 20 105 . . . . 4 26 . 16 2 . . . . . . . . . 2 Explosive 47 | . . . 2 7 . 3 3 13 3 . 4 . . . . . . 7 . . 4 1 Electromagnetic 191 | . . 10 19 . . . 52 . 75 1 32 2 . . . . . . . . . . Robot Hit Streak 25 | 8 16 6 23 8 . 3 17 12 14 3 6 25 4 10 . . 6 8 . . 1 10 Robot Miss Streak 7 | 4 7 3 4 4 . 1 6 2 5 1 6 3 . 1 . 2 3 3 . . 7 1 Penetration Max . | . . . . . . . . . . . . . . . . . . . . . . . Secondary Targets 9 | . 1 . . 1 . . 6 1 . . . . . . . . . . . . . . Max Gunslinging Chain 1 | . 1 . . 1 . . 1 1 . . . . . . . . . . . . . . Shots Hit Robots 874 | 16 74 13 136 38 . 8 178 73 108 7 55 63 7 8 . 5 35 27 . . 2 21 Core Hits 484 | 6 27 7 60 42 . 13 96 47 60 2 29 27 3 3 . 1 19 21 . . 6 15 Critical Kills 2 | . 2 . . . . . . . . . . . . . . . . . . . . . Critical Parts Destroyed . | . . . . . . . . . . . . . . . . . . . . . . . Critical Strikes 24 | . 2 . 6 . . . . . 1 1 1 7 . . . . 3 1 . . . 2 Burn 6 | . . . 5 . . . . . 1 . . . . . . . . . . . . . Meltdown 2 | . 2 . . . . . . . . . . . . . . . . . . . . . Destroy 1 | . . . 1 . . . . . . . . . . . . . . . . . . . Blast 10 | . . . . . . . . . . 1 . 6 . . . . 1 1 . . . 1 Sever 1 | . . . . . . . . . . . 1 . . . . . . . . . . . Impale 4 | . . . . . . . . . . . . 1 . . . . 2 . . . . 1 Melee Attacks 230 | . . . 5 . . . 1 17 5 9 49 51 12 3 2 6 42 6 . . 1 21 Impact 5 | . . . 5 . . . . . . . . . . . . . . . . . . . Slashing 96 | . . . . . . . 1 17 5 9 49 15 . . . . . . . . . . Piercing 129 | . . . . . . . . . . . . 36 12 3 2 6 42 6 . . 1 21 Sneak Attacks 29 | . . . . . . . . . 2 1 . 10 2 . . 2 9 . . . . 3 Combat Hostiles 1 | . . . . . . . . . . . . . 1 . . . . . . . . . Follow-up Attacks . | . . . . . . . . . . . . . . . . . . . . . . . Damage Inflicted 26592 | 177 1121 361 2579 1639 . 599 4134 2209 2890 274 2261 2341 338 244 . 228 1425 1868 . . 362 1542 Guns 10104 | 177 335 . 2176 661 . 116 3248 1225 2042 . 61 63 . . . . . . . . . . Cannons 5752 | . 769 312 206 . . . . . 174 118 1043 1168 94 244 . . 394 769 . . 27 434 Explosions 6576 | . . . 175 967 . 419 878 984 506 . 451 . . . . . . 1099 . . 335 762 Melee 3973 | . . . . . . . . . 152 156 706 1110 244 . . 228 1031 . . . . 346 Ramming 187 | . 17 49 22 11 . 64 8 . 16 . . . . . . . . . . . . . Kinetic 9157 | . . . 787 661 . 116 2390 1225 504 83 425 1077 94 244 . . 394 769 . . 27 361 Thermal 4394 | 177 1104 87 1266 . . . 466 . 652 . 112 63 . . . . . . . . . 467 Explosive 5429 | . . . 175 967 . 419 412 984 270 . 400 . . . . . . 1099 . . 335 368 Electromagnetic 3452 | . . 225 329 . . . 858 . 1296 35 618 91 . . . . . . . . . . Impact . | . . . . . . . . . . . . . . . . . . . . . . . Slashing 1358 | . . . . . . . . . 152 156 706 344 . . . . . . . . . . Piercing 2615 | . . . . . . . . . . . . 766 244 . . 228 1031 . . . . 346 Highest Corruption 8 | . . . . . . . 2 2 2 6 8 8 8 8 8 1 6 6 6 6 6 1 Average Corruption 4 | . . . . . . . 2 2 2 2 6 8 8 8 8 1 5 6 6 6 6 1 Corruption Purged 2 | . . . . . . . . . . . . . . . . . 2 . . . . . Corruption Blocked . | . . . . . . . . . . . . . . . . . . . . . . . Effects 269 | . . . . . . . 8 22 29 2 53 58 17 19 1 1 18 18 7 1 9 6 Message Errors 65 | . . . . . . . . 3 7 . 11 11 3 2 1 . 11 4 4 . 5 3 Matter Fused 64 | . . . . . . . 2 8 4 . 14 15 4 6 . 1 2 6 . 1 . 1 Heat Flow Errors 28 | . . . . . . . 2 . 6 1 2 9 3 2 . . 1 2 . . . . Energy Discharges 33 | . . . . . . . 1 3 2 1 9 5 3 2 . . . 3 2 . 2 . Parts Rejected 7 | . . . . . . . . . . . 3 2 . . . . 2 . . . . . Parts Fused 2 | . . . . . . . . 1 . . . 1 . . . . . . . . . . Data Loss (minor) 36 | . . . . . . . 3 4 4 . 7 6 . 5 . . 2 2 . . 2 1 Data Loss (major) 13 | . . . . . . . . 2 2 . 5 1 . 1 . . . 1 . . . 1 Misfires 13 | . . . . . . . . 1 3 . 1 3 4 1 . . . . . . . . Alerts 4 | . . . . . . . . . 1 . . 2 . . . . . . 1 . . . Weapon Failures 4 | . . . . . . . . . . . 1 3 . . . . . . . . . . Overload Shots . | . . . . . . . . . . . . . . . . . . . . . . . Overflow Damage 1161 | . . . 6 67 . 38 89 2 94 . 97 140 127 . . 129 139 9 . . 40 184 Projectiles 186 | . . . . . . . . . 13 . 38 71 26 . . . 20 9 . . . 9 Explosions 305 | . . . 6 67 . 38 89 2 9 . . . . . . . . . . . 40 54 Melee 670 | . . . . . . . . . 72 . 59 69 101 . . 129 119 . . . . 121 Knockbacks 13 | . . . . . . . . . 1 . 2 5 . . . . 2 1 . . . 2 Impact 1 | . . . . . . . . . 1 . . . . . . . . . . . . . Kinetic 12 | . . . . . . . . . . . 2 5 . . . . 2 1 . . . 2 Secondary . | . . . . . . . . . . . . . . . . . . . . . . . Self-Inflicted Damage 432 | . . . . 87 . . 77 87 90 . . . . . . . . 9 . . 26 56 Shots 16 | . . . . 3 . . 3 3 3 . . . . . . . . 1 . . 1 2 Rammed 22 | . 2 6 1 1 . 5 1 . 6 . . . . . . . . . . . . . Targets Rammed 25 | . 2 6 3 2 . 5 1 . 6 . . . . . . . . . . . . . Kicked . | . . . . . . . . . . . . . . . . . . . . . . . Crushed 3 | . . . 2 1 . . . . . . . . . . . . . . . . . . Highest Temperature 346 | 200 135 240 185 194 . 81 346 25 288 266 316 264 235 273 . 8 241 199 4 . 48 83 Average Temperature 60 | 87 32 62 44 56 . 32 70 14 78 57 63 58 64 76 . 6 69 57 2 . 10 18 Received Heat Transfer 2889 | . 189 15 375 80 . 72 588 353 288 9 192 90 . 18 . . 36 94 9 . 18 463 Effects 7 | . . 1 . . . . 1 . . . 1 3 . 1 . . . . . . . . Energy Bleed 2 | . . 1 . . . . . . . . . . . 1 . . . . . . . . Interference 3 | . . . . . . . . . . . . 3 . . . . . . . . . . Short Circuit 2 | . . . . . . . 1 . . . 1 . . . . . . . . . . . Siege Activations . | . . . . . . . . . . . . . . . . . . . . . . . Robots Corrupted 4 | . . . 1 . . . . . . . 2 1 . . . . . . . . . . Combat Hostiles 4 | . . . 1 . . . . . . . 2 1 . . . . . . . . . . Parts Fried 16 | . . . 2 . . . 3 . 9 . 2 . . . . . . . . . . . Impact Corruptions . | . . . . . . . . . . . . . . . . . . . . . . . Robots Melted 3 | . 2 . 1 . . . . . . . . . . . . . . . . . . . Combat Hostiles 3 | . 2 . 1 . . . . . . . . . . . . . . . . . . . Parts Melted 17 | 1 7 1 7 . . . . . . . . 1 . . . . . . . . . . Heat Transferred 8070 | 400 2378 185 3108 . . . 400 . 1077 . 124 74 . . . . . . . . . 324 Parts Sabotaged . | . . . . . . . . . . . . . . . . . . . . . . . Parts Stolen . | . . . . . . . . . . . . . . . . . . . . . . . Parts Stripped . | . . . . . . . . . . . . . . . . . . . . . . . Power Chain Reactions 10 | . . . . . . . 5 . 4 . 1 . . . . . . . . . . . Alert | -11 -10 -10 -9 -9 -9 -8 -8 -8 -8 -7 -7 -7 -7 -7 -7 -6 -6 -6 -6 -6 -5 -5 ------- Run | Yrd Mat Min Mat Min Exi Min Mat Gar Mat Fac Gar Fac Low Low Zio Pro Fac Low Low Dat Pro Fac Peak Influence 1165 | 25 264 97 361 305 . 100 463 964 631 377 1165 823 . . . . 232 . . . . 410 Initial 611 | . 16 13 13 138 . . . 200 469 258 263 611 . . . . . . . . . 222 Average 260 | 15 48 18 168 154 . 64 221 662 479 326 679 691 . . . . 117 . . . . 312 Maximum Alert Level 4 | . 1 . 1 1 . . 2 3 2 1 4 3 . . . . 1 . . . . 2 Low Security (%) 50 | 100 96 100 57 49 . 100 48 . . . . . . . . . 91 . . . . . Level 1 26 | . 3 . 42 50 . . 47 21 22 100 16 . . . . . 8 . . . . 93 Level 2 14 | . . . . . . . 3 30 77 . 45 54 . . . . . . . . . 6 Level 3 7 | . . . . . . . . 48 . . 33 45 . . . . . . . . . . Level 4 . | . . . . . . . . . . . 4 . . . . . . . . . . . Level 5 . | . . . . . . . . . . . . . . . . . . . . . . . High Security . | . . . . . . . . . . . . . . . . . . . . . . . Max Security . | . . . . . . . . . . . . . . . . . . . . . . . Squads Dispatched 37 | . 3 1 4 . . . 5 . 4 2 . 6 . . . . 6 . . . . 6 Investigation 22 | . 3 1 2 . . . 2 . 2 2 . 3 . . . . 3 . . . . 4 Extermination 4 | . . . . . . . . . . . . 2 . . . . 1 . . . . 1 Reinforcement 10 | . . . 2 . . . 3 . 2 . . . . . . . 2 . . . . 1 Assault 1 | . . . . . . . . . . . . 1 . . . . . . . . . . Garrison . | . . . . . . . . . . . . . . . . . . . . . . . Intercept . | . . . . . . . . . . . . . . . . . . . . . . . Searches Triggered . | . . . . . . . . . . . . . . . . . . . . . . . Data Miner Redirects 1 | . . . . . . . . . . . . . . . . . . . . . . 1 Construction Impeded 3 | . . . . . . . . . 1 . . . . . . . 1 . . . . 1 Haulers Reinforced . | . . . . . . . . . . . . . . . . . . . . . . . Active Scanning Responses . | . . . . . . . . . . . . . . . . . . . . . . . Cargo Convoy Interrupts . | . . . . . . . . . . . . . . . . . . . . . . . Stealth | -11 -10 -10 -9 -9 -9 -8 -8 -8 -8 -7 -7 -7 -7 -7 -7 -6 -6 -6 -6 -6 -5 -5 --------- Run | Yrd Mat Min Mat Min Exi Min Mat Gar Mat Fac Gar Fac Low Low Zio Pro Fac Low Low Dat Pro Fac Distress Signals 18 | . 3 . 2 . . . 5 . 3 . . 1 . . . . 1 . . . 1 2 Communications Jammed 11 | . . . . . . . . . . . 5 5 . . . . . . . . 1 . Distress Signals 7 | . . . . . . . . . . . 5 2 . . . . . . . . . . Times Spotted 487 | . 24 11 41 30 . 7 68 19 30 4 37 43 9 13 . 1 31 44 5 . 7 63 Peak Tracking Total 16 | . 5 3 4 11 . 4 5 4 4 3 6 6 4 4 . 1 6 9 4 . 4 16 Tactical Retreats 73 | . 2 1 2 2 . . 2 . . 1 12 12 3 5 . . 7 10 2 . 1 11 Traps | -11 -10 -10 -9 -9 -9 -8 -8 -8 -8 -7 -7 -7 -7 -7 -7 -6 -6 -6 -6 -6 -5 -5 ------- Run | Yrd Mat Min Mat Min Exi Min Mat Gar Mat Fac Gar Fac Low Low Zio Pro Fac Low Low Dat Pro Fac Traps Triggered 23 | . . . 1 . . . 2 4 . 4 6 1 . . . . 5 . . . . . Indirectly . | . . . . . . . . . . . . . . . . . . . . . . . Trap Hack Attempts . | . . . . . . . . . . . . . . . . . . . . . . . Triggered . | . . . . . . . . . . . . . . . . . . . . . . . Disarmed . | . . . . . . . . . . . . . . . . . . . . . . . Reprogrammed . | . . . . . . . . . . . . . . . . . . . . . . . Reused . | . . . . . . . . . . . . . . . . . . . . . . . Traps Extracted . | . . . . . . . . . . . . . . . . . . . . . . . Installed . | . . . . . . . . . . . . . . . . . . . . . . . Triggered 11 | . . . . . . . . . . . . . 3 . . 5 . 1 1 . 1 . Machines | -11 -10 -10 -9 -9 -9 -8 -8 -8 -8 -7 -7 -7 -7 -7 -7 -6 -6 -6 -6 -6 -5 -5 ---------- Run | Yrd Mat Min Mat Min Exi Min Mat Gar Mat Fac Gar Fac Low Low Zio Pro Fac Low Low Dat Pro Fac Machines Disabled 27 | . . . 2 1 . . 2 3 3 . 9 3 . . . . 1 1 . . . 2 Max in Single Turn 1 | . . . 1 1 . . 1 1 1 . 1 1 . . . . 1 1 . . . 1 Machines Repaired . | . . . . . . . . . . . . . . . . . . . . . . . Machines Dismantled . | . . . . . . . . . . . . . . . . . . . . . . . Machines Sabotaged . | . . . . . . . . . . . . . . . . . . . . . . . Overloaded Fab Kills . | . . . . . . . . . . . . . . . . . . . . . . . Hacking | -11 -10 -10 -9 -9 -9 -8 -8 -8 -8 -7 -7 -7 -7 -7 -7 -6 -6 -6 -6 -6 -5 -5 --------- Run | Yrd Mat Min Mat Min Exi Min Mat Gar Mat Fac Gar Fac Low Low Zio Pro Fac Low Low Dat Pro Fac Machines Accessed 115 | . 11 1 15 . 1 . 13 3 7 5 2 26 . . . . 13 2 . 4 . 12 Terminals 65 | . 8 . 10 . . . 8 3 5 1 2 13 . . . . 6 1 . . . 8 Fabricators 10 | . . . . . . . . . . . . 5 . . . . 2 . . . . 3 Repair Stations 12 | . 1 . 2 . . . 1 . 1 1 . 4 . . . . 2 . . . . . Recycling Units 11 | . 2 . 2 . . . 2 . 1 1 . 1 . . . . 2 . . . . . Scanalyzers 4 | . . . 1 . . . 1 . . . . 1 . . . . 1 . . . . . Garrison Access 6 | . . . . . . . 1 . . 2 . 2 . . . . . . . . . 1 Total Hacks 394 | . 31 1 43 . 1 . 60 7 31 14 3 73 . . . . 56 5 . 26 . 43 Successful 241 | . 17 1 31 . 1 . 38 1 20 7 1 34 . . . . 32 5 . 26 . 27 Failed 152 | . 14 . 12 . . . 22 6 11 7 2 39 . . . . 23 . . . . 16 Catastrophic 25 | . . . 2 . . . 2 2 1 2 1 7 . . . . 2 . . . . 6 Database Lockouts 1 | . . . . . . . . . . . . . . . . . 1 . . . . . Manual 185 | . 20 . 28 . . . 28 3 19 6 3 21 . . . . 34 . . . . 23 Terminals 222 | . 24 . 27 . . . 29 7 26 3 3 36 . . . . 36 4 . . . 27 Fabricators 41 | . . . . . . . . . . . . 18 . . . . 9 . . . . 14 Repair Stations 45 | . 3 . 10 . . . 11 . 4 2 . 12 . . . . 3 . . . . . Recycling Units 19 | . 4 . 2 . . . 5 . 1 3 . 2 . . . . 2 . . . . . Scanalyzers 25 | . . . 4 . . . 13 . . . . 2 . . . . 6 . . . . . Garrison Access 13 | . . . . . . . 2 . . 6 . 3 . . . . . . . . . 2 Terminal Hacks 87 | . 5 1 3 . 1 . 8 1 9 1 1 10 . . . . 9 5 . 26 . 7 Record 17 | . . . . . 1 . . . . . . . . . . . . 4 . 11 . 1 Part Schematic 12 | . . . . . . . . . . . . 1 . . . . 1 . . 8 . 2 Robot Schematic 5 | . 1 . . . . . . . . . . . . . . . . . . 4 . . Robot Analysis 4 | . . . 1 . . . 2 . 1 . . . . . . . . . . . . . Prototype ID Bank 10 | . 3 . . . . . . . 2 . . 1 . . . . 1 . . 3 . . Open Door 2 | . . 1 . . . . . . . . . . . . . . . 1 . . . . Level Access Points 1 | . . . . . . . . . . . . . . . . . . . . . . 1 Branch Access Points 2 | . . . . . . . . . . . . 1 . . . . . . . . . 1 Emergency Access Points 2 | . . . . . . . . 1 . . 1 . . . . . . . . . . . Machine Index 1 | . . . . . . . . . . . . . . . . . 1 . . . . . Terminal Index 7 | . 1 . 1 . . . 1 . 1 . . 1 . . . . 1 . . . . 1 Scanalyzer Index 1 | . . . . . . . 1 . . . . . . . . . . . . . . . Alert Level 5 | . . . . . . . 1 . 1 1 . 1 . . . . 1 . . . . . Unreport Threat 6 | . . . 1 . . . 3 . 1 . . 1 . . . . . . . . . . Locate Traps 4 | . . . . . . . . . 2 . . 1 . . . . 1 . . . . . Security Status 1 | . . . . . . . . . . . . . . . . . . . . . . 1 Patrol Status 1 | . . . . . . . . . . . . 1 . . . . . . . . . . Hauler Manifests 3 | . . . . . . . . . . . . 2 . . . . 1 . . . . . Zone Layout 3 | . . . . . . . . . 1 . . . . . . . 2 . . . . . Fabricator Hacks 18 | . . . . . . . . . . . . 8 . . . . 2 . . . . 8 Network Status 4 | . . . . . . . . . . . . 1 . . . . 1 . . . . 2 Load Schematic 8 | . . . . . . . . . . . . 4 . . . . . . . . . 4 Build 6 | . . . . . . . . . . . . 3 . . . . 1 . . . . 2 Repair Station Hacks 33 | . 2 . 10 . . . 7 . 3 1 . 8 . . . . 2 . . . . . Scan Component 18 | . 1 . 5 . . . 4 . 2 1 . 4 . . . . 1 . . . . . Repair 15 | . 1 . 5 . . . 3 . 1 . . 4 . . . . 1 . . . . . Recycling Unit Hacks . | . . . . . . . . . . . . . . . . . . . . . . . Scanalyzer 23 | . . . 4 . . . 12 . . . . 2 . . . . 5 . . . . . Insert Component 11 | . . . 2 . . . 6 . . . . 1 . . . . 2 . . . . . Analyze 12 | . . . 2 . . . 6 . . . . 1 . . . . 3 . . . . . Garrison Access Hacks 2 | . . . . . . . 1 . . 1 . . . . . . . . . . . . Unlock Access 2 | . . . . . . . 1 . . 1 . . . . . . . . . . . . Unauthorized Hacks 78 | . 10 . 14 . . . 10 . 8 4 . 6 . . . . 14 . . . . 12 Terminals 55 | . 8 . 12 . . . 6 . 7 1 . 3 . . . . 9 . . . . 9 Track 2 | . . . . . . . . . . . . . . . . . 1 . . . . 1 Assimilate 4 | . 2 . . . . . . . . . . 1 . . . . . . . . . 1 Botnet 7 | . . . 1 . . . 1 . 1 1 . . . . . . 2 . . . . 1 Disrupt 1 | . . . . . . . . . . . . . . . . . . . . . . 1 Operators 5 | . 1 . 1 . . . . . 1 . . . . . . . 1 . . . . 1 Skim 36 | . 5 . 10 . . . 5 . 5 . . 2 . . . . 5 . . . . 4 Fabricators 8 | . . . . . . . . . . . . 3 . . . . 2 . . . . 3 Report 2 | . . . . . . . . . . . . 1 . . . . 1 . . . . . Prioritize 1 | . . . . . . . . . . . . . . . . . . . . . . 1 Haulers 2 | . . . . . . . . . . . . . . . . . 1 . . . . 1 Recompile 3 | . . . . . . . . . . . . 2 . . . . . . . . . 1 Repair Stations 1 | . . . . . . . . . . . . . . . . . 1 . . . . . Patch 1 | . . . . . . . . . . . . . . . . . 1 . . . . . Recycling Units 12 | . 2 . 2 . . . 4 . 1 1 . . . . . . 2 . . . . . Reject 2 | . . . . . . . 2 . . . . . . . . . . . . . . . Tunnel 10 | . 2 . 2 . . . 2 . 1 1 . . . . . . 2 . . . . . Scanalyzers . | . . . . . . . . . . . . . . . . . . . . . . . Garrison Access 2 | . . . . . . . . . . 2 . . . . . . . . . . . . Decoy 1 | . . . . . . . . . . 1 . . . . . . . . . . . . Watchers 1 | . . . . . . . . . . 1 . . . . . . . . . . . . Data Cores Recovered 10 | . 2 . 1 . . . 1 . 1 . . 4 . . . . . . . . . 1 Used 4 | . . . . . . . 1 . . . . 2 . . . . . . . . . 1 Hacking Detections 90 | . 9 . 13 . . . 12 2 6 5 2 22 . . . . 7 . . . . 12 Full Trace Events 8 | . 1 . . . . . . 1 1 1 . 1 . . . . . . . . . 3 Feedback Events 3 | . . . . . . . . 1 . 2 . . . . . . . . . . . . Corruption 1 | . . . . . . . . . . 1 . . . . . . . . . . . . Hackware Fried 2 | . . . . . . . . 1 . 1 . . . . . . . . . . . . Feedback Blocked . | . . . . . . . . . . . . . . . . . . . . . . . Robot Schematics Acquired 6 | . 1 . . . . . . . . . . . . . 1 . . . . 4 . . Robots Built 4 | . . . . . . . . . . . . 4 . . . . . . . . . . Authchips 1 | . . . . . . . . . . . . 1 . . . . . . . . . . Time 174 | . . . . . . . . . . . . 174 . . . . . . . . . . Total Robot Build Rating 13 | . . . . . . . . . . . . 13 . . . . . . . . . . Part Schematics Acquired 36 | . . . 2 . . . 5 . . . . 2 . . 14 . 3 . . 8 . 2 Parts Built 7 | . . . . . . . . . . . . 2 . . . . 2 . . . . 3 Authchips 3 | . . . . . . . . . . . . 1 . . . . . . . . . 2 Time 239 | . . . . . . . . . . . . 47 . . . . 95 . . . . 97 Total Part Build Rating 35 | . . . . . . . . . . . . 10 . . . . 10 . . . . 15 Parts Repaired 15 | . 1 . 5 . . . 3 . 1 . . 4 . . . . 1 . . . . . Time 752 | . 26 . 240 . . . 160 . 44 . . 232 . . . . 50 . . . . . Parts Recycled . | . . . . . . . . . . . . . . . . . . . . . . . Recycled Matter . | . . . . . . . . . . . . . . . . . . . . . . . Retrieved Matter . | . . . . . . . . . . . . . . . . . . . . . . . Retrieved Components . | . . . . . . . . . . . . . . . . . . . . . . . Parts Scanalyzed 11 | . . . 2 . . . 6 . . . . 1 . . . . 2 . . . . . Part Schematics Acquired 10 | . . . 2 . . . 5 . . . . 1 . . . . 2 . . . . . Parts Damaged 1 | . . . . . . . . . . . . . . . . . 1 . . . . . Bothacking | -11 -10 -10 -9 -9 -9 -8 -8 -8 -8 -7 -7 -7 -7 -7 -7 -6 -6 -6 -6 -6 -5 -5 ------------ Run | Yrd Mat Min Mat Min Exi Min Mat Gar Mat Fac Gar Fac Low Low Zio Pro Fac Low Low Dat Pro Fac Used RIF Installer . | . . . . . . . . . . . . . . . . . . . . . . . Robots Hacked . | . . . . . . . . . . . . . . . . . . . . . . . Non-combat . | . . . . . . . . . . . . . . . . . . . . . . . Combat . | . . . . . . . . . . . . . . . . . . . . . . . Robot Hacks Applied . | . . . . . . . . . . . . . . . . . . . . . . . Relay Couplers Released . | . . . . . . . . . . . . . . . . . . . . . . . Fabnet Peak Effective % . | . . . . . . . . . . . . . . . . . . . . . . . Robots Rewired 2 | . . . . . . . . . . . . . . . . . 2 . . . . . Allies Hacked . | . . . . . . . . . . . . . . . . . . . . . . . Hacks Repelled . | . . . . . . . . . . . . . . . . . . . . . . . Allies | -11 -10 -10 -9 -9 -9 -8 -8 -8 -8 -7 -7 -7 -7 -7 -7 -6 -6 -6 -6 -6 -5 -5 -------- Run | Yrd Mat Min Mat Min Exi Min Mat Gar Mat Fac Gar Fac Low Low Zio Pro Fac Low Low Dat Pro Fac Total Allies 14 | . . 3 . 3 . . . . . . . 4 . . 2 . 2 . . . . . Largest Group 3 | . . 3 1 2 2 . . . . . . 3 . . 2 2 3 . . . . . Highest-Rated Group 95 | . . 40 16 50 50 . . . . . . 90 . . 59 59 95 . . . . . Highest-Rated Ally 32 | . . 16 16 31 31 . . . . . . 30 . . 31 31 32 . . . . . Total Orders 7 | . . 5 . . . . . . . . . 2 . . . . . . . . . . STAY 3 | . . 3 . . . . . . . . . . . . . . . . . . . . FOLLOW 3 | . . 2 . . . . . . . . . 1 . . . . . . . . . . AID 1 | . . . . . . . . . . . . 1 . . . . . . . . . . Ally Attacks 93 | . . 38 1 14 . . . . . . . 8 . . . 5 27 . . . . . Total Damage 1409 | . . 424 . 104 . . . . . . . 258 . . . 101 522 . . . . . Kills 17 | . . 5 . 2 . . . . . . . 3 . . . 1 6 . . . . . Allies Corrupted . | . . . . . . . . . . . . . . . . . . . . . . . Allies Melted . | . . . . . . . . . . . . . . . . . . . . . . . Intel | -11 -10 -10 -9 -9 -9 -8 -8 -8 -8 -7 -7 -7 -7 -7 -7 -6 -6 -6 -6 -6 -5 -5 ------- Run | Yrd Mat Min Mat Min Exi Min Mat Gar Mat Fac Gar Fac Low Low Zio Pro Fac Low Low Dat Pro Fac Robot Analysis Total 4 | . . . 1 . . . 2 . 1 . . . . . . . . . . . . . Derelict Logs Recovered 12 | . . 2 . 1 . . . . . . . . 2 1 1 2 . 1 1 . 1 . Drone Launches . | . . . . . . . . . . . . . . . . . . . . . . . Drone Recoveries . | . . . . . . . . . . . . . . . . . . . . . . . Exploration | -11 -10 -10 -9 -9 -9 -8 -8 -8 -8 -7 -7 -7 -7 -7 -7 -6 -6 -6 -6 -6 -5 -5 ------------- Run | Yrd Mat Min Mat Min Exi Min Mat Gar Mat Fac Gar Fac Low Low Zio Pro Fac Low Low Dat Pro Fac Turns Passed 33389 | 132 3228 3283 4816 1503 738 1135 5430 1748 2068 346 1621 1810 467 507 638 453 1009 771 399 58 355 874 Spaces Moved 20707 | 29 1057 977 1691 577 308 458 1855 656 697 421 1151 2413 827 825 1019 638 1604 1076 651 88 509 1180 Core 3 | . . . . . . . . . . . 3 . . . . . . . . . . . Treads 8300 | 29 1057 977 1691 577 308 458 1855 656 692 . . . . . . . . . . . . . Legs . | . . . . . . . . . . . . . . . . . . . . . . . Wheels . | . . . . . . . . . . . . . . . . . . . . . . . Hover 12404 | . . . . . . . . . 5 421 1148 2413 827 825 1019 638 1604 1076 651 88 509 1180 Flight . | . . . . . . . . . . . . . . . . . . . . . . . Fastest Speed 40 | 160 160 320 240 240 240 240 231 231 119 54 54 48 48 48 48 48 40 50 59 59 59 54 Average Speed 134 | 160 268 320 240 240 240 240 238 231 240 57 85 56 48 48 48 48 44 58 59 59 59 60 Slowest Speed 750 | 160 320 320 240 240 240 240 242 231 247 119 750 110 110 48 110 48 104 59 59 59 59 147 Overloaded Moves 2 | . . . . . . . . . . . . . . . . . . . . . . 2 Propulsion Burnouts . | . . . . . . . . . . . . . . . . . . . . . . . Robots Hopped 2 | . . . 2 . . . . . . . . . . . . . . . . . . . Cave-ins Triggered . | . . . . . . . . . . . . . . . . . . . . . . . Exploration Rate (%) 71 | 4 98 101 96 98 68 99 87 91 52 10 73 56 82 74 86 75 43 86 84 75 73 34 Regions Visited 22 Branch Regions 12 Pre-discovered Areas 21 | . 3 . 3 . 1 . 3 . 1 1 . . 1 1 1 1 2 1 . 1 1 . Known Exits Taken 12 | . . 1 1 . . 1 1 . 1 1 . 1 . . 1 1 1 . 1 . 1 . Unknown Exits Taken 8 | 1 1 . . 1 1 . . . . . . . 1 1 . . . 1 . 1 . . Scrap Searched 27 | . . 1 . 3 . 1 . . . . . . 1 5 3 3 . 5 2 . 3 . Spaces Dug 312 | . 3 . 3 8 . 10 10 32 22 3 5 35 3 3 . . 16 92 . . 37 30 Terrain Destroyed 655 | . 5 . 15 77 . 28 57 75 53 3 30 40 5 6 . . 19 132 . . 62 48 Melee 68 | . . . 3 . . . 1 12 3 1 5 16 2 1 . . 8 3 . . 1 12 Projectile 92 | . 5 . . 1 . . . . . 2 1 24 3 5 . . 11 11 . . 9 20 AOE 495 | . . . 12 76 . 28 56 63 50 . 24 . . . . . . 118 . . 52 16 Terrain Rammed . | . . . . . . . . . . . . . . . . . . . . . . . Walls Destroyed . | . . . . . . . . . . . . . . . . . . . . . . . Machines Disabled . | . . . . . . . . . . . . . . . . . . . . . . . Actions | -11 -10 -10 -9 -9 -9 -8 -8 -8 -8 -7 -7 -7 -7 -7 -7 -6 -6 -6 -6 -6 -5 -5 --------- Run | Yrd Mat Min Mat Min Exi Min Mat Gar Mat Fac Gar Fac Low Low Zio Pro Fac Low Low Dat Pro Fac Total 24751 | 86 1308 1077 2285 652 308 477 2678 789 944 504 1647 2702 866 917 1166 776 1820 1162 662 94 541 1290 Wait 2085 | 38 139 51 362 12 . . 561 22 67 38 235 104 11 71 122 130 84 18 6 . 6 8 Move 20677 | 28 1056 976 1686 576 307 457 1854 653 696 420 1148 2412 826 824 1018 637 1603 1075 650 87 508 1180 Hop 2 | . . . 2 . . . . . . . . . . . . . . . . . . . Pick Up 173 | 1 26 7 29 7 1 . 22 1 12 5 10 13 2 2 8 . 8 . 2 1 2 14 Fast Attach 82 | 1 . . 9 . . . 9 1 14 1 13 12 1 . 1 . 13 3 . . . 4 Attach 63 | . 4 . 5 1 . . 8 2 3 5 7 7 . . 1 . 3 3 1 2 . 11 Detach 26 | . 1 . 3 . . . 1 . 5 1 4 3 . . . . 3 3 . 1 . 1 Swap 273 | 2 12 6 36 8 . 6 49 26 31 7 22 19 8 2 4 2 8 7 1 1 6 10 Drop 207 | 2 4 7 41 7 . 1 37 . 29 7 14 11 3 2 10 . 15 1 . 2 1 13 Fire 832 | 14 64 24 104 39 . 8 135 61 76 11 84 70 3 13 . 1 32 46 2 . 17 28 Melee 230 | . . . 5 . . . 1 17 5 9 49 51 12 3 2 6 42 6 . . 1 21 Ram . | . . . . . . . . . . . . . . . . . . . . . . . Kick . | . . . . . . . . . . . . . . . . . . . . . . . Crush 25 | . 2 6 3 2 . 5 1 . 6 . . . . . . . . . . . . . Escape Stasis 67 | . . . . . . . . 6 . . 61 . . . . . . . . . . . Rewire 9 | . . . . . . . . . . . . . . . . . 9 . . . . . Trap . | . . . . . . . . . . . . . . . . . . . . . . . Miscellaneous . | . . . . . . . . . . . . . . . . . . . . . . . Route ------- -11/Scrapyard -10/Materials (discovered 6 exits: *Mat x3 / *Min x2 / *Sub) -10/Mines (discovered 3 exits: *Mat x2 / *Sub) -9/Materials (discovered 4 exits: *Mat x3 / *Min) -9/Mines (discovered 4 exits: *Mat x2 / *Exi / [*Zio]) -9/Exiles -8/Mines (discovered 2 exits: *Mat x2) -8/Materials (discovered 4 exits: *Fac x3 / Gar) -8/Garrison (discovered 3 exits: *Mat x3) -8/Materials (discovered 2 exits: *Fac x2) -7/Factory (discovered 5 exits: Fac x2 / Sto / Low / Gar) -7/Garrison (discovered 3 exits: *Fac x3) -7/Factory (discovered 5 exits: *Fac / *Sto x2 / *Low x2) -7/Lower Caves -7/Lower Caves (discovered 2 exits: *Fac / [*Zio]) -7/Zion -6/Proximity Caves -6/Factory -6/Lower Caves -6/Lower Caves (discovered 2 exits: *Fac / *Dat) -6/Data Miner -5/Proximity Caves -5/Factory (discovered 6 exits: *Fac x4 / Upp x2) History --------- Turn | Location | Event 53 | -11/Scrapyard | Discovered new exit (range 2) 133 | -11/Scrapyard | Entered Materials 313 | -10/Materials | Build established: Mutant 469 | -10/Materials | Discovered new exit (range 16) 771 | -10/Materials | Discovered new exit (range 9) 862 | -10/Materials | Learned location of Recycling (-7) 913 | -10/Materials | Identified exit to Materials 913 | -10/Materials | Identified exit to Subcaves 933 | -10/Materials | Derelicts attacked the area 2108 | -10/Materials | Discovered new exit (range 4) 2240 | -10/Materials | Repaired Lgt. Treads 2716 | -10/Materials | Discovered exit to Materials (range 16) 3361 | -10/Materials | Entered Mines 3436 | -10/Mines | Assisted by bots powering up and referring to "LRC-V3" 3495 | -10/Mines | Received a Rocket Launcher from a helpful Derelict 3497 | -10/Mines | Learned 2 Materials zone layouts 3863 | -10/Mines | Met a Derelict shopkeep closing up shop 4123 | -10/Mines | Discovered exit to Materials (range 12) 4270 | -10/Mines | Discovered exit to Materials (range 6) 4896 | -10/Mines | Discovered exit to Subcaves (range 14) 5331 | -10/Mines | Learned 2 Materials zone layouts 5645 | -10/Mines | Excavation squad dispatched 5645 | -10/Mines | A large section of the Mines collapsed 6644 | -10/Mines | Entered Materials 6644 | -9/Materials | Accompanied by 1 ally 6644 | -9/Materials | Evolved 2 slots: Propulsion x1, Utility x1 6645 | -9/Materials | Identified exit to Materials 7731 | -9/Materials | Discovered exit to Materials (range 12) 7827 | -9/Materials | Learned Storage trap positions 7887 | -9/Materials | Loaded intel: 2 repair station locations 7935 | -9/Materials | Learned location of Mines (-8) 8016 | -9/Materials | Learned 4 Recycling zone layouts 8040 | -9/Materials | Identified exit to Mines 8040 | -9/Materials | Learned location of 2 exits from Materials 8121 | -9/Materials | Loaded intel: 13 trap records 9356 | -9/Materials | Build established: Scavenger-Mutant 9429 | -9/Materials | Repaired Hrd. Medium Armor Plating 9830 | -9/Materials | Repaired Cooling System 9891 | -9/Materials | Repaired Enh. Autogun 9943 | -9/Materials | Repaired Beamcaster 10746 | -9/Materials | Build established: Mutant 11221 | -9/Materials | Repaired Enh. Autogun 11460 | -9/Materials | Entered Mines 11580 | -9/Mines | Learned location of 1 exit from Materials 11635 | -9/Mines | Deemed a non-threat by the Exiles lab entrance 11638 | -9/Mines | Discovered new exit (range 5) 11792 | -9/Mines | A Derelict revealed a hidden shortcut to a safe place 11821 | -9/Mines | Assembled infested the area 11887 | -9/Mines | Destroyed 9 combat bots 12162 | -9/Mines | Discovered exit to Materials (range 5) 12364 | -9/Mines | A weapon hastily lodged in a ceiling crevice suddenly fell to the ground 12434 | -9/Mines | Received a Mining Laser from a helpful Derelict 12892 | -9/Mines | Discovered exit to Materials (range 6) 12963 | -9/Mines | Entered Exiles 12963 | -9/Exiles | Accompanied by 2 allies 12993 | -9/Exiles | Led the pair of lost Derelicts to a safe place 13021 | -9/Exiles | Met 8R-AWN 13059 | -9/Exiles | Met EX-HEX 13129 | -9/Exiles | Met EX-BIN 13292 | -9/Exiles | Met EX-DEC 13307 | -9/Exiles | Learned location of Zion (-7) 13562 | -9/Exiles | Discovered new exit (range 14) 13701 | -9/Exiles | Entered Mines 13710 | -8/Mines | Core integrity fell below 50% 13985 | -8/Mines | Discovered exit to Materials (range 9) 14612 | -8/Mines | Discovered exit to Materials (range 15) 14836 | -8/Mines | Entered Materials 14836 | -8/Materials | Evolved 2 slots: Propulsion x1, Utility x1 14837 | -8/Materials | Identified exit to Factory 15707 | -8/Materials | Build established: Scavenger-Mutant 17804 | -8/Materials | Lost 3 parts (1u2w) 18312 | -8/Materials | Repaired Cmb. Airjet 18362 | -8/Materials | Repaired Cmb. Airjet 18423 | -8/Materials | Repaired Enh. Autogun 19226 | -8/Materials | Build established: Hacker-Mutant 19720 | -8/Materials | Build established: Mutant 19776 | -8/Materials | Identified exit to Garrison 20061 | -8/Materials | Learned Factory recycling unit intel 20172 | -8/Materials | Learned Factory machine intel 20197 | -8/Materials | Learned Storage stockpile data 20198 | -8/Materials | Learned location of 1 exit from Recycling 20207 | -8/Materials | Learned Storage trap positions 20226 | -8/Materials | Learned location of 3 exits from Factory 20253 | -8/Materials | Learned Factory terminal intel 20266 | -8/Materials | Entered Garrison 20326 | -8/Garrison | Hacking Suite fried by hacking feedback 20810 | -8/Garrison | Triggered checkpoint 20895 | -8/Garrison | Discovered new exit (range 14) 21004 | -8/Garrison | Triggered checkpoint 21202 | -8/Garrison | Discovered new exit (range 13) 21296 | -8/Garrison | Attempted to access garrison exit controls, blocked by remote lockdown 21453 | -8/Garrison | Triggered checkpoint 21612 | -8/Garrison | Triggered checkpoint 21750 | -8/Garrison | Discovered new exit (range 9) 21768 | -8/Garrison | Attempted to access garrison exit controls, blocked by remote lockdown 22014 | -8/Garrison | Entered Materials 22920 | -8/Materials | Repaired Imp. Shield Generator? 23147 | -8/Materials | Discovered exit to Factory (range 10) 23493 | -8/Materials | Core integrity fell below 50% 23804 | -8/Materials | Discovered exit to Factory (range 14) 24082 | -8/Materials | Entered Factory 24082 | -7/Factory | Evolved 2 slots: Utility x2 24083 | -7/Factory | Identified exit to Lower Caves 24084 | -7/Factory | Identified exit to Factory 24084 | -7/Factory | Identified exit to Storage 24085 | -7/Factory | Loaded intel: 219 machine locations 24086 | -7/Factory | Loaded intel: 25 terminal locations 24087 | -7/Factory | Loaded intel: 6 recycling unit locations 24092 | -7/Factory | Hacking Suite fried by hacking feedback 24158 | -7/Factory | Identified exit to Garrison 24356 | -7/Factory | Build established: Scavenger-Mutant 24428 | -7/Factory | Entered Garrison 24480 | -7/Garrison | Triggered checkpoint 24770 | -7/Garrison | Triggered checkpoint 24976 | -7/Garrison | Discovered new exit (range 12) 25085 | -7/Garrison | Attempted to access garrison exit controls, blocked by remote lockdown 25134 | -7/Garrison | Heavy support dispatched to Factory 25294 | -7/Garrison | Triggered checkpoint 25331 | -7/Garrison | H-XX Assembler disabled 25332 | -7/Garrison | Triggered checkpoint 25515 | -7/Garrison | Discovered new exit (range 9) 25519 | -7/Garrison | Attempted to access garrison exit controls, blocked by remote lockdown 25588 | -7/Garrison | Triggered checkpoint 25661 | -7/Garrison | Lost 3 parts (1p1n1u) 25702 | -7/Garrison | Spotted B-75 Beast 25897 | -7/Garrison | Core integrity fell below 50% 25991 | -7/Garrison | Discovered new exit (range 15) 26049 | -7/Garrison | Entered Factory 26132 | -7/Factory | Build established: Infiltrator-Mutant 26310 | -7/Factory | Fabricated M-13 Machinist? 26440 | -7/Factory | Build established: Scavenger-Mutant 26849 | -7/Factory | First assault squad dispatched 26948 | -7/Factory | Fabricated L-41 Fighter (x3) 27043 | -7/Factory | Lost 3 allies 27127 | -7/Factory | Discovered exit to Factory (range 16) 27236 | -7/Factory | Repaired Aerolev Unit? 27257 | -7/Factory | Repaired Cmb. Airjet? 27272 | -7/Factory | Build established: Mutant 27312 | -7/Factory | Repaired Aerolev Unit? 27359 | -7/Factory | Repaired Imp. Antigrav System? 27763 | -7/Factory | Fabricated Cmb. Airjet (x2) 27859 | -7/Factory | Entered Lower Caves 27875 | -7/Lower Caves | Met a Warlord Commander 27876 | -7/Lower Caves | Learned location of Warlord (-5) 27877 | -7/Lower Caves | Warlord Commander delivered Encrypted Comm Array 27882 | -7/Lower Caves | Found Encrypted Comm Array 28036 | -7/Lower Caves | Learned Factory emergency access door positions 28052 | -7/Lower Caves | Learned 4 Factory zone layouts 28222 | -7/Lower Caves | Build established: Hacker-Mutant 28238 | -7/Lower Caves | Encountered a Warlord checkpoint 28286 | -7/Lower Caves | Discovered new exit (range 7) 28326 | -7/Lower Caves | Entered another Lower Caves area 28370 | -7/Lower Caves | Discovered exit to Factory (range 2) 28608 | -7/Lower Caves | Discovered new exit (range 8) 28833 | -7/Lower Caves | Entered Zion 28851 | -7/Zion | System corruption cleaned by Quarantine Array 28877 | -7/Zion | Identified exit to Proximity Caves 28990 | -7/Zion | Found Prototype Launcher 29006 | -7/Zion | Identified Gui. Missile Launcher 29065 | -7/Zion | Gained Derelict followers 29124 | -7/Zion | Met Imprinter 29326 | -7/Zion | Found Prototype Device 29343 | -7/Zion | Identified Bomb Factory No. 2 29471 | -7/Zion | Entered Proximity Caves 29471 | -6/Proximity Caves | Accompanied by 2 allies 29564 | -6/Proximity Caves | Spotted B-75 Beast 29667 | -6/Proximity Caves | Learned Factory stockpile data 29742 | -6/Proximity Caves | Discovered exit to Factory (range 8) 29924 | -6/Proximity Caves | Entered Factory 29924 | -6/Factory | Accompanied by 1 ally 29924 | -6/Factory | Evolved 2 slots: Propulsion x1, Utility x1 29925 | -6/Factory | Identified exit to Lower Caves 30199 | -6/Factory | Spotted B-75 Beast 30241 | -6/Factory | Fabricated Hvy. Machine Gun (x2) 30404 | -6/Factory | Repaired Broken Gravity Neutralizer 30699 | -6/Factory | Central database locked down 30775 | -6/Factory | Learned Extension trap positions 30841 | -6/Factory | Loaded intel: 78 trap records 30895 | -6/Factory | Learned Factory trap positions 30933 | -6/Factory | Entered Lower Caves 31012 | -6/Lower Caves | Attacked by a delusional Derelict stockpiling parts 31033 | -6/Lower Caves | Learned Factory garrison access intel 31355 | -6/Lower Caves | Discovered new exit (range 7) 31367 | -6/Lower Caves | Encountered a Warlord checkpoint 31497 | -6/Lower Caves | Attracted the attention of an 0b10 base 31588 | -6/Lower Caves | Lost 3 allies 31650 | -6/Lower Caves | Learned location of 1 exit from Research 31650 | -6/Lower Caves | Learned 6 Proximity Caves zone layouts 31650 | -6/Lower Caves | Learned Extension trap positions 31704 | -6/Lower Caves | Entered another Lower Caves area 31725 | -6/Lower Caves | Discovered new exit (range 10) 31749 | -6/Lower Caves | Identified exit to Data Miner 32103 | -6/Lower Caves | Entered Data Miner 32107 | -6/Data Miner | Discovered new exit (range 6) 32115 | -6/Data Miner | Met Data Miner 32134 | -6/Data Miner | Learned location of Section 7 (-2) 32134 | -6/Data Miner | Acquired the access code to Warlord's prototype stash 32142 | -6/Data Miner | Received God Mode back door access code from Data Miner 32161 | -6/Data Miner | Entered Proximity Caves 32162 | -5/Proximity Caves | Identified exit to Factory 32376 | -5/Proximity Caves | Spotter reported a threat 32516 | -5/Proximity Caves | Entered Factory 32516 | -5/Factory | Evolved 2 slots: Utility x2 32517 | -5/Factory | Loaded intel: 103 trap records 32518 | -5/Factory | Loaded intel: 3 garrison access locations 32788 | -5/Factory | Fabricated Cmb. Airjet (x2) 32801 | -5/Factory | Identified exit to Factory 33015 | -5/Factory | Fabricated Cld. Aerolev Unit (x1) 33108 | -5/Factory | Identified exit to Upper Caves 33275 | -5/Factory | Spotted B-75 Beast 33278 | -5/Factory | Incoming investigation squad redirected 33390 | -5/Factory | Self-destructed Last Messages --------------- 33371_ Cmb. Airjet destroyed. 33374_ ECM Suite destroyed. 33374_ Critical hit (Burn: +50). 33374_ Penetrated by Slug. 33374_ Critical hit (Burn: +37). 33374_ Penetrated by Slug. 33375_ Cmb. Airjet destroyed. 33375_ Penetrated by Slug. 33376_ Cmb. Airjet destroyed. 33376_ Penetrated by Slug. 33377_ Neutrino Core destroyed. 33378_ Enh. Gauss Cannon destroyed. 33379_ Slug penetrates G-50 Soldier. 33379_ G-50 Soldier suffers critical hit (Destroy). 33380_ Acquired Prototype Ballistic Cannon. 33380_ Penetrated by Slug. 33381_ Slug penetrates Wall. 33390_ Penetrated by Slug. 33390_ Cmb. Airjet destroyed. 33390_ Slug penetrates G-50 Soldier. Map ----- +----------------------------------------------------+ | ??????????????????????????# ?????????????^????# | | ??????????????????????????/ ?????????????^????# | | ??????????????????????????# ????????????? | | ??????????????????????????# ?? ????????? ] | | ??????????????????????????# """""???????????"" | | ??????????????????????????# """F"???????????"" | | ??????????????????######### """ "???????????"" == | | ???????????????^??? # ???????????"" =! | | ?????????????^???? # ??????????? | | ???????????????? ? # ??????????? | | ????????????????? ! # ##???????????? "## | | ????????????????"" """ # T#???????????????? | | ????????????????"" """ # ??###???????????? | | ???????????????""" """ # ##?# ???????????? | | ???????????????^ # ??+ ???????????? | | ?????????????? """ """ # #??# ????"??????? | | ?????????????? """ """ # #??# """ ""?????? | | ????????????# """ """ # #??# """ """????? | | ?????????????^ ^ ^ # #??# ????? | | ????????????# """ """ ! #??# """ """ ???? | | ????????????# """ """ #??# """ """ ???? | | ????????????+ """ """ "" #??# """ """????? | | ????????????# ! F" #??# ??????? | | ????????????# " #??# ???????? | | ????????????### "" #??? !????????? | | ??????????????# @ ######"###/####### | | ??????????????# gg g h | | ??????????????# ######### g h | | ????????????????????????# < g g h | | ????????????????????????# gh | | ????????????????????????# h | | ????????????????????????### ###+########;##### | | ??????????????????????????# # ?????## | | ??????????????????????????# #""" ????# " | | ??????????????????????????+ #""" #?## " | | ????????^?????????????????# #""" #?#" " | | ??????????????????????????# # ! #?##^ | | ??????????????????????????# #""" #??# " | | ??????????????????????????# #""" #??# ^" | | ??????????????????????????# #""" #??# ^" | | ??????????????????????????# # = #??# | | ??????????????????????????# #???######??# | | ??????????????????????????# #???????????# | | ??????????????????????????# #???????????# | | ??????????????????????????# #???????????###### | | ??????????????????????????# ?????????????????? | | ??????????????????????????# ?????????????????? | | ??????????????????????????# ?????????????????? | | ???????????????????????????? ?????????????????? | | ?????????????????????????????????????????????????? | +----------------------------------------------------+ Best States ------------- Heat Dissipation 72 Energy Generation 21 Energy Capacity 325 Matter Stores 300 Matter Capacity 300 Sight Range 22 Terrain Scan Density 10 ECM Strength 1 Jamming Range 16 Power Amplification 30 Additional Mass Support 12 Base Temperature (-) 200 Armor Coverage 600 Evasion (%) 66 Targeting Accuracy 8 Core Analysis 6 Recoil Reduction 4 Offensive Hacking 26 Defensive Hacking 11 Authchip Count 2 Item Schematics ----------------- Airjet | -9/Materials | Scanalyzed Cooling System | -9/Materials | Scanalyzed Cmb. Airjet | -8/Materials | Scanalyzed Aerolev Unit | -8/Materials | Scanalyzed ECM Suite | -8/Materials | Scanalyzed Seismic Detector | -8/Materials | Scanalyzed Hcp. Storage Unit | -8/Materials | Scanalyzed Magnetic Acceleration Cannon | -7/Factory | Scanalyzed Hvy. Phase Cannon | -7/Factory | Hacked Adv. Sensor Array | -7/Zion | Archive Launcher Guidance Computer | -7/Zion | Archive Dynamic Insulation System | -7/Zion | Archive Adv. Signal Interpreter | -7/Zion | Archive Imp. Coolant Injector | -7/Zion | Archive Lyr. Light Armor Plating | -7/Zion | Archive Flexi-carbon Leg | -7/Zion | Archive Imp. Melee Analysis Suite | -7/Zion | Archive Imp. Hacking Suite | -7/Zion | Archive Hvy. Missile Launcher | -7/Zion | Archive Force Field | -7/Zion | Archive Energy Filter | -7/Zion | Archive Imp. Remote Datajack | -7/Zion | Archive Imp. KE Penetrator | -7/Zion | Archive Adv. Cryofiber Web | -6/Factory | Scanalyzed Gravity Neutralizer | -6/Factory | Scanalyzed Core Analyzer | -6/Factory | Hacked Combat Drone Bay | -6/Data Miner | Free Lgt. Regenerative Plating | -6/Data Miner | Free Exp. Cesium-ion Thruster | -6/Data Miner | Free Prc. Matter Filter | -6/Data Miner | Free Hvy. Proton Cannon | -6/Data Miner | Free Impulse Thruster | -6/Data Miner | Free Imp. Force Booster | -6/Data Miner | Free Hvy. Gauss Cannon | -6/Data Miner | Free Cld. Aerolev Unit | -5/Factory | Hacked Hardcell Cannon | -5/Factory | Hacked Robot Schematics ------------------ M-13 Machinist | -10/Materials | Hacked R-06 Scavenger | -7/Zion | Archive R-10 Processor | -6/Data Miner | Free G-50 Soldier | -6/Data Miner | Free M-36 Artificer | -6/Data Miner | Free B-60 Warrior | -6/Data Miner | Free Fabricated ------------ M-13 Machinist | x1 | -7/Factory | Authchip L-41 Fighter | x3 | -7/Factory | Preloaded Cmb. Airjet | x2 | -7/Factory | Authchip Hvy. Machine Gun | x2 | -6/Factory | Preloaded Cmb. Airjet | x2 | -5/Factory | Authchip Cld. Aerolev Unit | x1 | -5/Factory | Authchip Alien Tech Used ----------------- None Achievements -------------- Sniper Challenges ------------ None Game ------ Seed BoreUtilityCyclogen Manual? 0 Play Time 06:03:45 Cumulative 220.1 hours Start 2024.11.27 @ 00:12:10 End 2024.11.27 @ 20:19:25 Sessions 5 Manual Loads 0 Difficulty Rogue Special Mode None Game No. 98 Rogue 98 Adventurer 0 Explorer 0 Win Type - Total 3 Types 0/0/1/1/0/0/1/0/0 Lore% 61 Gallery% 74 Achievement% 58 Wizard Run 0 Options --------- Layout 0 ASCII 0 Keyboard 0 Movement Numpad Keybinds 1 Fullscreen 2 Font 18/X11 Map View 76x50 Zoom Use 0% Tactical HUD 1 Map Filters NONE Filters NONE Steam 1 RUN: 9c0b5a55-c7bb-422a-9f5b-0b694f1690cd